bitfinex/quotes_BTCUSD_20250716
["timestamp","ask_amount","ask_price","bid_price","bid_amount"]
[1752625556681,1.39954193,117720.0,117710.0,5.071e-05]
[1752625556812,1.40254193,117720.0,117710.0,5.071e-05]
[1752625557226,5.88945793,117720.0,117710.0,5.071e-05]
[1752625557428,5.89245793,117720.0,117710.0,5.071e-05]
[1752625557844,5.90699878,117720.0,117710.0,5.071e-05]
[1752625561147,6.0178723,117720.0,117710.0,5.071e-05]
[1752625562431,6.0228723,117720.0,117710.0,5.071e-05]
[1752625571221,1.5329563,117720.0,117710.0,5.071e-05]
[1752625571426,6.0228723,117720.0,117710.0,5.071e-05]
[1752625572758,6.02731178,117720.0,117710.0,5.071e-05]
[1752625574070,1.53739578,117720.0,117710.0,5.071e-05]
[1752625574316,6.02731178,117720.0,117710.0,5.071e-05]
[1752625576786,0.18694713,117680.0,117670.0,0.10054301]
[1752625577011,0.18694713,117680.0,117670.0,0.18821401]
[1752625577012,0.53402,117680.0,117670.0,0.18821401]
[1752625577952,0.53402,117680.0,117670.0,0.27397363]
[1752625578454,0.18694713,117680.0,117670.0,0.45503867]
[1752625578702,0.37256513,117680.0,117670.0,0.47203455]
[1752625578885,0.54251754,117680.0,117670.0,0.37777703]
[1752625580829,0.19544467,117680.0,117670.0,0.37777703]
[1752625581036,0.54251754,117680.0,117670.0,0.37777703]
[1752625581876,0.54251754,117680.0,117670.0,0.30913402]
[1752625583334,0.55101516,117680.0,117670.0,0.30063604]
[1752625583565,0.55101516,117680.0,117670.0,0.43367604]
[1752625583780,0.55101516,117680.0,117670.0,0.44217416]
[1752625584454,0.19544504,117680.0,117670.0,0.43107604]
[1752625584642,0.54251791,117680.0,117670.0,0.43107604]
[1752625584907,0.54251791,117680.0,117670.0,0.29803604]
[1752625585395,0.53402044,117680.0,117670.0,0.28953785]
[1752625585630,0.5255229,117680.0,117670.0,0.119571]
[1752625586133,0.5285929,117680.0,117670.0,0.119571]
[1752625586361,0.5255229,117680.0,117670.0,0.119571]
[1752625587243,0.17845003,117680.0,117670.0,0.28953785]
[1752625587432,0.5255229,117680.0,117670.0,0.28953785]
[1752625587686,0.5255229,117680.0,117670.0,0.29803612]
[1752625588677,0.5255229,117680.0,117670.0,0.30653446]
[1752625589324,0.5255229,117680.0,117670.0,0.31503265]
[1752625589538,0.18694743,117680.0,117670.0,0.33202882]
[1752625589752,0.5340203,117680.0,117670.0,0.33202838]
[1752625590848,0.5340203,117680.0,117670.0,0.32353048]
[1752625591774,0.5340203,117680.0,117670.0,0.29803612]
[1752625592010,0.5340203,117680.0,117670.0,0.30653424]
[1752625592242,0.5340203,117680.0,117670.0,0.31503229]
[1752625593292,0.5340203,117680.0,117670.0,0.32353027]
[1752625594167,0.5340203,117680.0,117670.0,0.30653424]
[1752625594386,0.5255229,117680.0,117670.0,0.30653424]
[1752625595139,0.51702528,117680.0,117670.0,0.119571]
[1752625595399,0.52213528,117680.0,117670.0,0.103371]
[1752625596079,0.52213528,117680.0,117670.0,5.072e-05]
[1752625596352,0.53713528,117680.0,117670.0,0.13305072]
[1752625596534,0.52213528,117680.0,117670.0,0.13305072]
[1752625599273,0.52313528,117680.0,117670.0,0.13305072]
[1752625599505,0.52313528,117680.0,117670.0,0.15327398]
[1752625599964,0.52313528,117680.0,117670.0,0.3317391]
[1752625600170,0.52313528,117680.0,117670.0,0.31151584]
[1752625600985,0.52313528,117680.0,117670.0,0.13305072]
[1752625601936,0.52313528,117680.0,117670.0,0.30301757]
[1752625602224,0.52313528,117680.0,117670.0,0.32851237]
[1752625603220,0.52313528,117680.0,117670.0,0.32001418]
[1752625603781,0.53163282,117680.0,117670.0,0.33531418]
[1752625603984,0.53163282,117680.0,117670.0,0.34592223]
[1752625604181,0.54013015,117680.0,117670.0,0.36291811]
[1752625604617,0.54013015,117680.0,117670.0,0.34592223]
[1752625605281,0.54013015,117680.0,117670.0,0.3459223]
[1752625605778,0.54013015,117680.0,117670.0,0.35442035]
[1752625605978,0.54013015,117680.0,117670.0,0.36291833]
[1752625606912,0.54013015,117680.0,117670.0,0.34761833]
[1752625607101,0.54013015,117680.0,117670.0,0.33912035]
[1752625607333,0.54013015,117680.0,117670.0,0.33701035]
[1752625608288,0.54013015,117680.0,117670.0,0.34550833]
[1752625609014,0.54013015,117680.0,117670.0,0.34550745]
[1752625611683,0.37017774,117680.0,117670.0,0.34550745]
[1752625611905,0.54862777,117680.0,117670.0,0.34550745]
[1752625612103,0.37017774,117680.0,117670.0,0.34550745]
[1752625612657,0.37017731,117680.0,117670.0,0.34550745]
[1752625612790,0.37867478,117680.0,117670.0,0.34550745]
[1752625613200,0.53510733,117680.0,117670.0,0.43337707]
[1752625613410,0.27824426,117680.0,117670.0,0.46437707]
[1752625613632,0.27824419,117680.0,117670.0,0.46437707]
[1752625614357,0.28674144,117680.0,117670.0,0.46437707]
[1752625614778,0.29523884,117680.0,117670.0,0.37861745]
[1752625614990,0.02649133,117680.0,117670.0,0.37861745]
[1752625615207,0.37345172,117680.0,117670.0,0.37861745]
[1752625615917,0.36495447,117680.0,117670.0,0.37861745]
[1752625616121,0.37345165,117680.0,117670.0,0.37861745]
[1752625616329,0.38194898,117680.0,117670.0,0.37861745]
[1752625617954,0.36495447,117680.0,117670.0,0.37861745]
[1752625618089,0.37345172,117680.0,117670.0,0.37861745]
[1752625618310,0.36495447,117680.0,117670.0,0.37861745]
[1752625618899,0.37345165,117680.0,117670.0,0.37861745]
[1752625619115,0.001,117680.0,117670.0,0.33372773]
[1752625619338,0.001,117680.0,117670.0,0.89932774]
[1752625620181,0.001,117680.0,117670.0,0.96797075]
[1752625620877,0.001,117680.0,117670.0,0.99348475]
[1752625622049,0.37398057,117710.0,117700.0,0.21091118]
[1752625622050,0.3739805,117710.0,117700.0,0.21091118]
[1752625622260,0.89934536,117710.0,117700.0,0.33740551]
[1752625622475,0.89614049,117710.0,117700.0,0.34590118]
[1752625622682,0.90469484,117710.0,117700.0,0.34590118]
[1752625622897,0.7262314,117710.0,117700.0,0.34590118]
[1752625623522,0.37077563,117710.0,117700.0,0.39728419]
[1752625623734,0.71773602,117710.0,117700.0,0.34590118]
[1752625623948,0.7282314,117710.0,117700.0,0.34590118]
[1752625624159,0.71973602,117710.0,117700.0,0.34590118]
[1752625625813,0.7282314,117710.0,117700.0,0.34590118]
[1752625626028,0.89814049,117710.0,117700.0,0.33740551]
[1752625626187,0.89814049,117710.0,117700.0,0.34590132]
[1752625626385,0.7282314,117710.0,117700.0,0.34590132]
[1752625626621,0.7282314,117710.0,117700.0,0.35439699]
[1752625626817,0.71973602,117710.0,117700.0,0.35439699]
[1752625628107,0.71124035,117710.0,117700.0,0.35439699]
[1752625628321,0.71973558,117710.0,117700.0,0.35439699]
[1752625628532,0.72823089,117710.0,117700.0,0.35439699]
[1752625628811,0.71973558,117710.0,117700.0,0.35439699]
[1752625629028,0.72823089,117710.0,117700.0,0.35439699]
[1752625630926,0.71973558,117710.0,117700.0,0.35439699]
[1752625631175,0.37277519,117710.0,117700.0,0.35439699]
[1752625631387,0.71973558,117710.0,117700.0,0.35439699]
[1752625631936,0.72823089,117710.0,117700.0,0.35439699]
[1752625633246,0.71973558,117710.0,117700.0,0.35439699]
[1752625633453,0.72823089,117710.0,117700.0,0.35439699]
[1752625634292,0.90663543,117710.0,117700.0,0.35439699]
[1752625634715,0.73672634,117710.0,117700.0,0.35439699]
[1752625636143,0.89814056,117710.0,117700.0,0.33040132]
[1752625636766,0.89814056,117710.0,117700.0,0.33889706]
[1752625636901,0.72823147,117710.0,117700.0,0.34739273]
[1752625637122,0.89814056,117710.0,117700.0,0.34739273]
[1752625637519,0.71973602,117710.0,117700.0,0.34739273]
[1752625637733,0.5511801,117710.0,117700.0,0.34739273]
[1752625637960,0.90663594,117710.0,117700.0,0.39379883]
[1752625638575,0.73672685,117710.0,117700.0,0.4022945]
[1752625638778,0.89814049,117710.0,117700.0,0.4022945]
[1752625638985,0.7282314,117710.0,117700.0,0.4022945]
[1752625639927,0.7282314,117710.0,117700.0,0.34739273]
[1752625640284,0.71124071,117710.0,117700.0,0.34739273]
[1752625640497,0.71124035,117710.0,117700.0,0.36279273]
[1752625641689,0.71973558,117710.0,117700.0,0.36279273]
[1752625642295,0.89814005,117710.0,117700.0,0.36279273]
[1752625642717,0.9066355,117710.0,117700.0,0.34739273]
[1752625642951,0.55967511,117710.0,117700.0,0.34739273]
[1752625643165,0.9066355,117710.0,117700.0,0.34739273]
[1752625643453,0.37973558,117710.0,117700.0,0.37839273]
[1752625643704,0.55814012,117710.0,117700.0,0.33678706]
[1752625645245,0.38823089,117710.0,117700.0,0.34528273]
[1752625645666,0.39672627,117710.0,117700.0,0.34528273]
[1752625646745,0.39672627,117710.0,117700.0,0.21240273]
[1752625646964,0.56663594,117710.0,117700.0,0.34508273]
[1752625647209,0.47977694,117710.0,117700.0,0.34508273]
[1752625651084,0.47977694,117710.0,117700.0,0.33658706]
[1752625651300,0.21967555,117710.0,117700.0,0.33658706]
[1752625651475,0.47977694,117710.0,117700.0,0.33658706]
[1752625651931,0.47977694,117710.0,117700.0,0.34508273]
[1752625653203,0.47977694,117710.0,117700.0,0.33658706]
[1752625654147,0.3013724,117710.0,117700.0,0.40100394]
[1752625654369,0.3013724,117710.0,117700.0,0.41600394]
[1752625654695,0.29287702,117710.0,117700.0,0.41600394]
[1752625655509,0.28438135,117710.0,117700.0,0.50151422]
[1752625655724,0.29608189,117710.0,117700.0,0.51741422]
[1752625655937,0.47755643,117710.0,117700.0,0.44776301]
[1752625656152,0.47110156,117710.0,117700.0,0.43926734]
[1752625656776,0.47110156,117710.0,117700.0,0.42426734]
[1752625656993,0.46260647,117710.0,117700.0,0.4157716]
[1752625658026,0.28420193,117710.0,117700.0,0.42426727]
[1752625659163,0.4626064,117710.0,117700.0,0.42426727]
[1752625659515,0.29269731,117710.0,117700.0,0.42426727]
[1752625660299,0.4626064,117710.0,117700.0,0.42426727]
[1752625660519,0.45411131,117710.0,117700.0,0.08768028]
[1752625660749,0.18693067,117690.0,117680.0,0.18512734]
[1752625660964,0.46864206,117690.0,117680.0,0.08551028]
[1752625661183,0.18694721,117680.0,117670.0,0.17850973]
[1752625661408,0.72568999,117680.0,117670.0,0.2725182]
[1752625661627,0.72026281,117680.0,117670.0,0.085561]
[1752625661836,0.73676281,117680.0,117670.0,0.39658619]
[1752625662055,0.45215882,117680.0,117670.0,0.50784025]
[1752625662266,0.29070344,117680.0,117670.0,0.38377808]
[1752625662546,0.02210458,117680.0,117670.0,0.51633808]
[1752625662763,0.28016424,117690.0,117680.0,0.19544439]
[1752625662981,0.28866092,117690.0,117680.0,0.29812467]
[1752625663187,0.28866084,117690.0,117680.0,0.38388429]
[1752625663399,0.01699278,117690.0,117680.0,0.40048429]
[1752625663605,0.28559077,117690.0,117680.0,0.40048429]
[1752625663820,0.47252238,117690.0,117680.0,0.31472481]
[1752625664027,0.4585996,117690.0,117680.0,0.29812481]
[1752625664456,0.450103,117690.0,117680.0,0.28113023]
[1752625664667,0.44364625,117690.0,117680.0,0.26613023]
[1752625664891,0.44364625,117690.0,117680.0,0.2746277]
[1752625665110,0.53044914,117690.0,117680.0,0.29162243]
[1752625665322,0.53044914,117690.0,117680.0,0.31571968]
[1752625665502,0.37750424,117690.0,117680.0,0.31571932]
[1752625665712,0.36389742,117690.0,117680.0,0.3446211]
[1752625666224,0.37239424,117690.0,117680.0,0.3446211]
[1752625666485,0.37239424,117690.0,117680.0,0.33201896]
[1752625666703,0.54233221,117690.0,117680.0,0.33201896]
[1752625666915,0.54233221,117690.0,117680.0,0.29872467]
[1752625667334,0.54755221,117690.0,117680.0,0.29872467]
[1752625667545,0.54755221,117690.0,117680.0,0.28312467]
[1752625668270,0.20064793,117690.0,117680.0,0.28312467]
[1752625668560,0.54755221,117690.0,117680.0,0.27462742]
[1752625668930,0.54755221,117690.0,117680.0,0.27245742]
[1752625669515,0.54755221,117690.0,117680.0,0.27245771]
[1752625669715,0.54755221,117690.0,117680.0,0.28095496]
[1752625670360,0.54755221,117690.0,117680.0,0.28095504]
[1752625670576,0.54755221,117690.0,117680.0,0.28297504]
[1752625671983,0.37761424,117690.0,117680.0,0.36893626]
[1752625672193,0.36389742,117690.0,117680.0,0.37743337]
[1752625672395,0.01699314,117690.0,117680.0,0.37743337]
[1752625672602,0.19542786,117690.0,117680.0,0.37743337]
[1752625672807,0.19855786,117690.0,117680.0,0.29867504]
[1752625673016,0.54546214,117690.0,117680.0,0.29867504]
[1752625673424,0.54546214,117690.0,117680.0,0.30717229]
[1752625673619,0.54546214,117690.0,117680.0,0.3156694]
[1752625673830,0.55395903,117690.0,117680.0,0.3156694]
[1752625674048,0.55395903,117690.0,117680.0,0.30717229]
[1752625674357,0.55604903,117690.0,117680.0,0.30717229]
[1752625675568,0.20914475,117690.0,117680.0,0.30717229]
[1752625675791,0.55604903,117690.0,117680.0,0.30717229]
[1752625676345,0.36598742,117690.0,117680.0,0.31566947]
[1752625676493,0.37239417,117690.0,117680.0,0.31566896]
[1752625676929,0.36389742,117690.0,117680.0,0.31566896]
[1752625677141,0.36389742,117690.0,117680.0,0.33116896]
[1752625677592,0.01699314,117690.0,117680.0,0.33116896]
[1752625677816,0.0169927,117690.0,117680.0,0.36849359]
[1752625678495,0.02548923,117690.0,117680.0,0.36849359]
[1752625678793,0.02548923,117690.0,117680.0,0.33116896]
[1752625678999,0.03398591,117690.0,117680.0,0.33116896]
[1752625679382,0.02548923,117690.0,117680.0,0.33116896]
[1752625680085,0.0169927,117690.0,117680.0,0.33116896]
[1752625680298,0.02548916,117690.0,117680.0,0.33116896]
[1752625680509,0.01699263,117690.0,117680.0,0.41692858]
[1752625681126,0.02548916,117690.0,117680.0,0.41692858]
[1752625682411,0.03398591,117690.0,117680.0,0.41692858]
[1752625682838,0.03398591,117690.0,117680.0,0.40142858]
[1752625683053,0.03398591,117690.0,117680.0,0.31566896]
[1752625683676,0.03711591,117690.0,117680.0,0.31566896]
[1752625684320,0.03711584,117690.0,117680.0,0.31566896]
[1752625684601,0.55604874,117690.0,117680.0,0.27245742]
[1752625685051,0.46933664,117690.0,117680.0,0.27245771]
[1752625685261,0.46933664,117690.0,117680.0,0.28095504]
[1752625685674,0.49274025,117690.0,117680.0,0.39636031]
[1752625685882,0.49274025,117690.0,117680.0,0.40485785]
[1752625686959,0.49274025,117690.0,117680.0,0.41335532]
[1752625687379,0.49274025,117690.0,117680.0,0.42185272]
[1752625687596,0.47734025,117690.0,117680.0,0.43035005]
[1752625687804,0.46084025,117690.0,117680.0,0.43034954]
[1752625688226,0.20064807,117690.0,117680.0,0.48343906]
[1752625688434,0.49324025,117690.0,117680.0,0.4133551]
[1752625689075,0.47664025,117690.0,117680.0,0.4133551]
[1752625690238,0.48474372,117690.0,117680.0,0.4048577]
[1752625690448,0.46775015,117690.0,117680.0,0.39636023]
[1752625690661,0.45115015,117690.0,117680.0,0.39636023]
[1752625691071,0.46695015,117690.0,117680.0,0.39636023]
[1752625692531,0.45115015,117690.0,117680.0,0.27245763]
[1752625692757,0.45115015,117690.0,117680.0,0.40481763]
[1752625693760,0.45115015,117690.0,117680.0,0.41331496]
[1752625695654,0.45115015,117690.0,117680.0,0.4048177]
[1752625695912,0.46695015,117690.0,117680.0,0.4048177]
[1752625696146,0.26541218,117690.0,117680.0,0.48169544]
[1752625696376,0.45234372,117690.0,117680.0,0.48169544]
[1752625696830,0.46933714,117690.0,117680.0,0.48169544]
[1752625697034,0.46933714,117690.0,117680.0,0.48169558]
[1752625697274,0.46084061,117690.0,117680.0,0.41331503]
[1752625697492,0.47644061,117690.0,117680.0,0.41331503]
[1752625697806,0.21624843,117690.0,117680.0,0.41331503]
[1752625698025,0.47644061,117690.0,117680.0,0.42181228]
[1752625698775,0.21624843,117690.0,117680.0,0.43030946]
[1752625699017,0.00316,117700.0,117690.0,0.19541424]
[1752625699252,0.60335218,117710.0,117700.0,0.18691551]
[1752625699472,0.62238243,117710.0,117700.0,0.32984118]
[1752625699705,0.63937254,117710.0,117700.0,0.32984118]
[1752625700154,0.8092817,117710.0,117700.0,0.42235579]
[1752625700436,0.8092817,117710.0,117700.0,0.48411953]
[1752625700689,0.79229188,117710.0,117700.0,0.49261556]
[1752625700914,0.79429188,117710.0,117700.0,0.49261556]
[1752625701128,0.88087062,117710.0,117700.0,0.49261556]
[1752625701797,0.5340997,117710.0,117700.0,0.50960726]
[1752625702003,0.02418996,117710.0,117700.0,0.53360293]
[1752625702910,0.02418989,117710.0,117700.0,0.53360293]
[1752625703130,0.03268505,117710.0,117700.0,0.53360293]
[1752625703811,0.02418989,117710.0,117700.0,0.53360293]
[1752625704030,0.03064505,117710.0,117700.0,0.53360293]
[1752625705076,0.02214989,117710.0,117700.0,0.53360293]
[1752625705298,0.03064505,117710.0,117700.0,0.53360293]
[1752625705517,0.02214989,117710.0,117700.0,0.53360293]
[1752625706617,0.03064498,117710.0,117700.0,0.54205877]
[1752625706868,0.002,117710.0,117700.0,0.56065877]
[1752625707092,0.002,117710.0,117700.0,0.90742969]
[1752625707539,0.002,117710.0,117700.0,0.56065877]
[1752625710132,0.002,117710.0,117700.0,0.47489915]
[1752625715808,0.002,117710.0,117700.0,0.82167007]
[1752625716029,0.002,117710.0,117700.0,0.47489915]
[1752625718473,0.002,117710.0,117700.0,0.82167007]
[1752625719433,0.00404,117710.0,117700.0,0.47018915]
[1752625719487,0.00404,117710.0,117700.0,0.08551028]
[1752625719488,0.0397,117710.0,117700.0,0.08551028]
[1752625719613,0.91337041,117710.0,117700.0,0.26392991]
[1752625719806,0.62116747,117710.0,117700.0,0.08551028]
[1752625720009,0.02548981,117690.0,117680.0,0.19544432]
[1752625720211,0.5453587,117690.0,117680.0,0.32869714]
[1752625720416,0.36896391,117690.0,117680.0,0.33719432]
[1752625720671,0.02219299,117690.0,117680.0,0.20605143]
[1752625720854,0.01699292,117690.0,117680.0,0.34569143]
[1752625721055,0.00849639,117690.0,117680.0,0.34569143]
[1752625721293,0.01699299,117690.0,117680.0,0.34569143]
[1752625721746,0.01699292,117690.0,117680.0,0.34569143]
[1752625721984,0.01906,117700.0,117690.0,0.16993797]
[1752625722211,0.03068692,117700.0,117690.0,0.18904139]
[1752625722423,0.20910648,117700.0,117690.0,0.18054479]
[1752625722844,0.20910648,117700.0,117690.0,0.01060689]
[1752625723058,0.00849624,117690.0,117680.0,0.34188627]
[1752625723319,0.02548916,117690.0,117680.0,0.35249381]
[1752625723935,0.01699263,117690.0,117680.0,0.35249381]
[1752625724373,0.01699263,117690.0,117680.0,0.52376371]
[1752625724605,0.00849624,117690.0,117680.0,0.52376371]
[1752625724831,0.18691486,117700.0,117690.0,0.19542785]
[1752625725052,0.19641074,117700.0,117690.0,0.28296813]
[1752625725260,0.19846074,117700.0,117690.0,0.2829682]
[1752625725484,0.21008677,117700.0,117690.0,0.36023129]
[1752625725696,0.21008677,117700.0,117690.0,0.35173469]
[1752625725968,0.21858294,117700.0,117690.0,0.35173469]
[1752625726182,0.21858287,117700.0,117690.0,0.36023137]
[1752625726400,0.21008677,117700.0,117690.0,0.36872797]
[1752625726614,0.20908677,117700.0,117690.0,0.3772245]
[1752625726831,0.20059074,117700.0,117690.0,0.3772245]
[1752625727046,0.20059074,117700.0,117690.0,0.35173469]
[1752625727335,0.21758287,117700.0,117690.0,0.36023144]
[1752625727554,0.2185828,117700.0,117690.0,0.36872812]
[1752625727810,0.2185828,117700.0,117690.0,0.37722472]
[1752625728035,0.2185828,117700.0,117690.0,0.36872812]
[1752625728277,0.2185828,117700.0,117690.0,0.37722472]
[1752625728544,0.2185828,117700.0,117690.0,0.36872812]
[1752625729204,0.2185828,117700.0,117690.0,0.37722472]
[1752625729915,0.2185828,117700.0,117690.0,0.36872812]
[1752625730351,0.2100867,117700.0,117690.0,0.36872812]
[1752625730575,0.21858287,117700.0,117690.0,0.36872812]
[1752625730804,0.2100867,117700.0,117690.0,0.36872812]
[1752625731031,0.2185828,117700.0,117690.0,0.36872812]
[1752625731329,0.21858273,117700.0,117690.0,0.37722472]
[1752625731543,0.01799126,117700.0,117690.0,0.41702082]
[1752625731737,0.19641067,117700.0,117690.0,0.41702082]
[1752625731950,0.19641067,117700.0,117690.0,0.40852443]
[1752625732169,0.19641067,117700.0,117690.0,0.40142089]
[1752625732408,0.20490663,117700.0,117690.0,0.40142089]
[1752625732618,0.20490663,117700.0,117690.0,0.39292443]
[1752625732836,0.21858273,117700.0,117690.0,0.3844279]
[1752625733054,0.21008721,117700.0,117690.0,0.35173462]
[1752625733509,0.19309559,117700.0,117690.0,0.1712699]
[1752625733749,0.56307055,117700.0,117690.0,0.22431028]
[1752625735680,0.56307055,117700.0,117690.0,0.22407028]
[1752625736574,0.21629963,117700.0,117690.0,0.22407028]
[1752625736831,0.56307055,117700.0,117690.0,0.22407028]
[1752625738099,0.56307055,117700.0,117690.0,0.26772117]
[1752625739061,0.56307055,117700.0,117690.0,0.22407028]
[1752625739706,0.17843479,117690.0,117680.0,0.17844962]
[1752625739840,0.57058239,117690.0,117680.0,0.4106173]
[1752625740213,0.22381147,117690.0,117680.0,0.41911477]
[1752625740427,0.55408239,117690.0,117680.0,0.41911477]
[1752625740636,0.56257892,117690.0,117680.0,0.41911477]
[1752625740847,0.37744095,117690.0,117680.0,0.43610906]
[1752625741061,0.200608,117690.0,117680.0,0.43610906]
[1752625741428,0.200608,117690.0,117680.0,0.49829166]
[1752625742369,0.03067003,117690.0,117680.0,0.42761195]
[1752625742595,0.20910489,117690.0,117680.0,0.43610906]
[1752625742937,0.03916692,117690.0,117680.0,0.43610906]
[1752625743447,0.03067003,117690.0,117680.0,0.43813906]
[1752625743690,0.03066996,117690.0,117680.0,0.43813906]
[1752625743901,0.03066996,117690.0,117680.0,0.52389868]
[1752625744982,0.03066945,117690.0,117680.0,0.52389868]
[1752625745746,0.03916613,117690.0,117680.0,0.52389868]
[1752625746803,0.03066945,117690.0,117680.0,0.52389868]
[1752625746978,0.0391662,117690.0,117680.0,0.52389868]
[1752625747251,0.03066945,117690.0,117680.0,0.52389868]
[1752625747457,0.03066945,117690.0,117680.0,0.43813906]
[1752625748078,0.0391662,117690.0,117680.0,0.43813906]
[1752625749327,0.03066945,117690.0,117680.0,0.43813906]
[1752625749747,0.0391662,117690.0,117680.0,0.43813906]
[1752625749955,0.03916613,117690.0,117680.0,0.43813906]
[1752625750171,0.03916613,117690.0,117670.0,0.19551151]
[1752625750172,0.00849754,117680.0,117670.0,0.19551151]
[1752625750419,0.36894507,117680.0,117670.0,0.521057]
[1752625751873,0.3774424,117680.0,117670.0,0.383777]
[1752625752128,0.3774424,117680.0,117670.0,0.522977]
[1752625752981,0.02217415,117680.0,117670.0,0.522977]
[1752625753193,0.36894507,117680.0,117670.0,0.522977]
[1752625754891,0.36044789,117680.0,117670.0,0.522977]
[1752625755099,0.368945,117680.0,117670.0,0.522977]
[1752625755297,0.37744218,117680.0,117670.0,0.522977]
[1752625755824,0.38593958,117680.0,117670.0,0.522977]
[1752625755999,0.38593943,117680.0,117670.0,0.522977]
[1752625756393,0.39443683,117680.0,117670.0,0.522977]
[1752625756593,0.38593943,117680.0,117670.0,0.522977]
[1752625756792,0.39443683,117680.0,117670.0,0.522977]
[1752625757024,0.38593943,117680.0,117670.0,0.522977]
[1752625757231,0.39436406,117690.0,117670.0,0.51595242]
[1752625757444,0.02864938,117690.0,117680.0,0.19544439]
[1752625757650,0.38586666,117700.0,117690.0,0.19542778]
[1752625757871,0.58632102,117710.0,117700.0,0.19541132]
[1752625758136,0.41005648,117710.0,117700.0,0.20390699]
[1752625758376,0.5969564,117710.0,117700.0,0.20390699]
[1752625758796,0.58846138,117710.0,117700.0,0.18691551]
[1752625759081,0.57996615,117710.0,117700.0,0.24568552]
[1752625759289,0.58869031,117710.0,117700.0,0.24568552]
[1752625759718,0.57169962,117710.0,117700.0,0.24568567]
[1752625759934,0.57169962,117710.0,117690.0,0.40078457]
[1752625759935,0.19541147,117700.0,117690.0,0.28093799]
[1752625760194,0.55281835,117700.0,117690.0,0.42611438]
[1752625760430,0.38605482,117700.0,117690.0,0.42611438]
[1752625761173,0.56447409,117700.0,117690.0,0.42611438]
[1752625761426,0.56447409,117700.0,117690.0,0.49448503]
[1752625761668,0.56547409,117700.0,117690.0,0.49448503]
[1752625761845,0.39555056,117700.0,117690.0,0.49448503]
[1752625762057,0.37855843,117700.0,117690.0,0.49448503]
[1752625762692,0.37855843,117700.0,117690.0,0.42611438]
[1752625763120,0.37006247,117700.0,117690.0,0.42611438]
[1752625763554,0.37855843,117700.0,117690.0,0.42611438]
[1752625763763,0.36156644,117700.0,117690.0,0.42808438]
[1752625763971,0.36690211,117700.0,117690.0,0.44458438]
[1752625764178,0.02013119,117700.0,117690.0,0.51341203]
[1752625764820,0.01799119,117700.0,117690.0,0.51341203]
[1752625765033,0.01799119,117700.0,117690.0,0.52188334]
[1752625765466,0.01799119,117700.0,117690.0,0.51341203]
[1752625765467,0.02964707,117700.0,117690.0,0.51341203]
[1752625765731,0.03178707,117700.0,117690.0,0.49691203]
[1752625766694,0.02329119,117700.0,117690.0,0.49691203]
[1752625767139,0.04028296,117700.0,117690.0,0.49691203]
[1752625767773,0.031787,117700.0,117690.0,0.49691203]
[1752625768058,0.02329119,117700.0,117690.0,0.49691203]
[1752625768501,0.03178693,117700.0,117690.0,0.49691203]
[1752625768759,0.02329119,117700.0,117690.0,0.49691203]
[1752625769430,0.02329119,117700.0,117690.0,0.51201203]
[1752625769682,0.03178693,117700.0,117690.0,0.51201203]
[1752625770137,0.00949559,117700.0,117690.0,0.51201203]
[1752625770359,0.00949552,117700.0,117690.0,0.51201203]
[1752625771058,0.01799119,117700.0,117690.0,0.51201203]
[1752625771960,0.026487,117700.0,117690.0,0.51201203]
[1752625772260,0.01799119,117700.0,117690.0,0.51201203]
[1752625774501,0.01799111,117700.0,117690.0,0.51201203]
[1752625775418,0.00949552,117700.0,117690.0,0.51201203]
[1752625776482,0.01799111,117700.0,117690.0,0.51201203]
[1752625777761,0.02648685,117700.0,117690.0,0.51201203]
[1752625777984,0.01799111,117700.0,117690.0,0.51201203]
[1752625778867,0.02648678,117700.0,117690.0,0.51201203]
[1752625779744,0.01799111,117700.0,117690.0,0.51201203]
[1752625781475,0.00949552,117700.0,117690.0,0.51201203]
[1752625782242,0.001,117700.0,117690.0,0.51201203]
[1752625782479,0.001,117700.0,117690.0,0.53041203]
[1752625783140,0.001,117700.0,117690.0,0.87718295]
[1752625783364,0.001,117700.0,117690.0,0.53041203]
[1752625783849,0.3937585,117700.0,117690.0,0.41689806]
[1752625784081,0.3852624,117700.0,117690.0,0.41689806]
[1752625784534,0.39375836,117700.0,117690.0,0.41689806]
[1752625784728,0.03849148,117700.0,117690.0,0.41689806]
[1752625785192,0.3852624,117700.0,117690.0,0.41689806]
[1752625785398,0.3852624,117700.0,117690.0,0.4852576]
[1752625785847,0.04698751,117700.0,117690.0,0.4852576]
[1752625786060,0.3852624,117700.0,117690.0,0.4852576]
[1752625786270,0.39375828,117700.0,117690.0,0.4852576]
[1752625786479,0.40225431,117700.0,117690.0,0.4852576]
[1752625786685,0.58767784,117700.0,117690.0,0.4852576]
[1752625786887,0.59617401,117700.0,117690.0,0.4852576]
[1752625787344,0.42625041,117700.0,117690.0,0.4852576]
[1752625787943,0.06248736,117700.0,117690.0,0.4852576]
[1752625788149,0.41775424,117700.0,117690.0,0.4852576]
[1752625788365,0.59617387,117700.0,117690.0,0.4852576]
[1752625788795,0.59617437,117700.0,117690.0,0.4852576]
[1752625789015,0.21913118,117690.0,117680.0,0.18694743]
[1752625789236,0.56247564,117690.0,117680.0,0.40829771]
[1752625789462,0.56247564,117690.0,117680.0,0.41679496]
[1752625789686,0.56247564,117690.0,117680.0,0.42529214]
[1752625789924,0.56247564,117690.0,117680.0,0.49424879]
[1752625790142,0.56247564,117690.0,117680.0,0.48575161]
[1752625791610,0.56247564,117690.0,117680.0,0.39968031]
[1752625792050,0.56247564,117690.0,117680.0,0.40817785]
[1752625792521,0.21570472,117690.0,117680.0,0.40817785]
[1752625792757,0.56247564,117690.0,117680.0,0.41667532]
[1752625792983,0.21570472,117690.0,117680.0,0.42517272]
[1752625793226,0.56247564,117690.0,117680.0,0.50261476]
[1752625793872,0.21570472,117690.0,117680.0,0.50261476]
[1752625794118,0.56247564,117690.0,117680.0,0.50261476]
[1752625795067,0.38404092,117690.0,117680.0,0.50261439]
[1752625795267,0.36883384,117690.0,117680.0,0.50261396]
[1752625795470,0.36033731,117690.0,117680.0,0.50261396]
[1752625795675,0.36033716,117690.0,117680.0,0.50472396]
[1752625795884,0.36883355,117690.0,117680.0,0.50472396]
[1752625796384,0.36033716,117690.0,117680.0,0.50472396]
[1752625796817,0.36883355,117690.0,117680.0,0.50472396]
[1752625797025,0.36033716,117690.0,117680.0,0.50472396]
[1752625797217,0.01356632,117690.0,117680.0,0.50472396]
[1752625798242,0.02206278,117690.0,117680.0,0.50472396]
[1752625798489,0.01356639,117690.0,117680.0,0.50472396]
[1752625800497,0.2221665,117700.0,117690.0,0.195428]
[1752625800695,0.57095742,117700.0,117690.0,0.18693154]
[1752625801238,0.57095742,117700.0,117690.0,0.19542814]
[1752625801447,0.57095742,117700.0,117690.0,0.20392467]
[1752625801867,0.57195742,117700.0,117690.0,0.20392467]
[1752625802822,0.57195742,117700.0,117690.0,0.26268306]
[1752625803025,0.57195742,117700.0,117690.0,0.27117959]
[1752625803231,0.57195742,117700.0,117690.0,0.27967605]
[1752625803881,0.55555742,117700.0,117690.0,0.27967605]
[1752625804126,0.38563262,117700.0,117690.0,0.21242063]
[1752625805017,0.40133262,117700.0,117690.0,0.21242063]